[Event "58th Akiba Rubinstein A 2022"]
[Site "Polanica-Zdroj"]
[Date "2022.08.18"]
[Round "6.5"]
[White "Kejna, Piotr"]
[Black "Barwinska, Ewa"]
[Result "1/2-1/2"]
[ECO "B96"]
[WhiteElo "1970"]
[BlackElo "1940"]
[Annotator "NA RC"]
[PlyCount "61"]
[EventDate "2022.08.13"]
[EventCountry "POL"]
[SourceTitle "playchess.com"]
[Source "ChessBase"]
[SourceQuality "1"]
[TimeControl "40/5400+30:1800+30"]

1. e4 {[%emt 0:00:13]} c5 {[%emt 0:00:06]} 2. Nf3 {[%emt 0:00:07]} d6 {[%emt 0:00:04]} 3. d4 {[%emt 0:00:07]} cxd4 {[%emt 0:00:06]} 4. Nxd4 {[%emt 0:00:04]} Nf6 {[%emt 0:00:10]} 5. Nc3 {[%emt 0:00:05]} a6 {[%emt 0:00:06]} 6. Bg5 {[%emt 0:00:21]} e6 {[%emt 0:00:13]} 7. f4 {[%emt 0:00:18]} Nc6 {[%emt 0:00:11]} 8. Nxc6 {[%emt 0:03:28]} bxc6 {[%emt 0:00:08]} 9. e5 {[%emt 0:03:59]} h6 {[%emt 0:00:25]} 10. Bh4 {[%emt 0:02:09]} g5 {[%emt 0:00:52]} 11. fxg5 {[%emt 0:07:16]} Nd5 {[%emt 0:02:36]} 12. Ne4 {[%emt 0:11:27]} Qb6 {[%emt 0:02:51]} 13. Bd3 {[%emt 0:09:02]} Qe3+ {[%emt 0:17:42]} 14. Qe2 {[%emt 0:00:20]} Qxe2+ {[%emt 0:03:03]} 15. Kxe2 {[%emt 0:16:26]} dxe5 {[%emt 0:09:37]} 16. Nf6+ {[%emt 0:08:12]} Ke7 {[%emt 0:11:01]} 17. Rhf1 {[%emt 0:04:33]} Nf4+ {[%emt 0:02:34]} 18. Kf3 {[%emt 0:02:40]} Bg7 {[%emt 0:03:48]} 19. Ng4 {[%emt 0:03:06]} hxg5 {[%emt 0:03:12]} 20. Bxg5+ {[%emt 0:00:08]} f6 {[%emt 0:00:24]} 21. Bxf4 {[%emt 0:00:58]} exf4 {[%emt 0:00:07]} 22. Kxf4 {[%emt 0:01:36]} e5+ {[%emt 0:03:18]} 23. Kg3 {[%emt 0:00:40]} Bxg4 {[%emt 0:00:21]} 24. Kxg4 {[%emt 0:00:02]} Rxh2 {[%emt 0:00:47]} 25. Kg3 {[%emt 0:00:13]} Rhh8 {[%emt 0:01:25]} 26. Rad1 {[%emt 0:01:03]} Bh6 {[%emt 0:02:04]} 27. Be4 {[%emt 0:01:54]} Bf4+ {[%emt 0:01:58]} 28. Kf2 {[%emt 0:00:53]} Rac8 {[%emt 0:02:29]} 29. Rd3 {[%emt 0:01:23]} Rhd8 {[%emt 0:02:13]} 30. Rfd1 {[%emt 0:01:23]} c5 {[%emt 0:01:23]} 31. Rxd8 {[%emt 0:00:49]} 1/2-1/2

[Event "58th Akiba Rubinstein A 2022"]
[Site "Polanica-Zdroj"]
[Date "2022.08.18"]
[Round "6.6"]
[White "Skrzypczynski, Kacper"]
[Black "Lambrecht, Tomasz"]
[Result "1/2-1/2"]
[ECO "D45"]
[WhiteElo "1793"]
[BlackElo "1956"]
[Annotator "NA RC"]
[PlyCount "70"]
[EventDate "2022.08.13"]
[EventCountry "POL"]
[SourceTitle "playchess.com"]
[Source "ChessBase"]
[SourceQuality "1"]
[TimeControl "40/5400+30:1800+30"]

1. d4 {[%emt 0:00:02]} d5 {[%emt 0:00:33]} 2. c4 {[%emt 0:00:27]} c6 {[%emt 0:01:28]} 3. Nf3 {[%emt 0:01:26]} e6 {[%emt 0:00:07]} 4. e3 {[%emt 0:00:44]} Nf6 {[%emt 0:01:46]} 5. Nc3 {[%emt 0:01:16]} Nbd7 {[%emt 0:00:35]} 6. Be2 {[%emt 0:00:20]} Bd6 {[%emt 0:01:47]} 7. O-O {[%emt 0:00:34]} O-O {[%emt 0:00:03]} 8. b3 {[%emt 0:04:13]} b6 {[%emt 0:00:07]} 9. Bb2 {[%emt 0:00:12]} Bb7 {[%emt 0:00:01]} 10. Nd2 {[%emt 0:03:41]} Rc8 {[%emt 0:05:09]} 11. cxd5 {[%emt 0:00:54]} exd5 {[%emt 0:05:20]} 12. Bf3 {[%emt 0:02:46]} Re8 {[%emt 0:01:00]} 13. Rc1 {[%emt 0:00:37]} Nf8 {[%emt 0:03:32]} 14. e4 {[%emt 0:05:10]} dxe4 {[%emt 0:00:09]} 15. Ndxe4 {[%emt 0:02:06]} Nxe4 {[%emt 0:01:06]} 16. Bxe4 {[%emt 0:01:34]} Qg5 {[%emt 0:22:08]} 17. Qd3 {[%emt 0:13:50]} Rcd8 {[%emt 0:18:22]} 18. g3 {[%emt 0:16:41]} Qa5 {[%emt 0:12:09]} 19. Rfd1 {[%emt 0:03:00]} Ba3 {[%emt 0:02:56]} 20. Bxa3 {[%emt 0:12:44]} Qxa3 21. Nb5 {[%emt 0:02:58]} cxb5 {[%emt 0:00:56]} 22. Bxb7 {[%emt 0:00:10]} Ne6 {[%emt 0:03:03]} 23. Bc6 {[%emt 0:06:33]} Rxd4 {[%emt 0:03:52]} 24. Qe2 {[%emt 0:01:51]} Rc8 {[%emt 0:08:08]} 25. Rc2 {[%emt 0:04:33]} Qd6 {[%emt 0:02:58]} 26. Rdc1 {[%emt 0:03:21]} b4 {[%emt 0:00:23]} 27. Bb7 {[%emt 0:00:44]} Rxc2 {[%emt 0:01:52]} 28. Rxc2 {[%emt 0:00:43]} g6 {[%emt 0:01:37]} 29. Qa6 {[%emt 0:04:12]} Qe5 {[%emt 0:02:10]} 30. Bf3 {[%emt 0:04:15]} Rd7 {[%emt 0:01:13]} 31. Re2 {[%emt 0:01:53]} Qa1+ {[%emt 0:00:45]} 32. Kg2 {[%emt 0:00:02]} Kg7 {[%emt 0:00:36]} 33. Bg4 {[%emt 0:00:19]} Re7 {[%emt 0:00:28]} 34. Bxe6 {[%emt 0:00:22]} fxe6 {[%emt 0:00:10]} 35. Qc4 {[%emt 0:00:04]} a5 {[%emt 0:00:57]} 1/2-1/2

[Event "58th Akiba Rubinstein A 2022"]
[Site "Polanica-Zdroj"]
[Date "2022.08.18"]
[Round "6.7"]
[White "Kolodziejski, Piotr"]
[Black "Paprocki, Antoni"]
[Result "1-0"]
[ECO "B10"]
[WhiteElo "2107"]
[BlackElo "1981"]
[Annotator "NA RC"]
[PlyCount "113"]
[EventDate "2022.08.13"]
[EventCountry "POL"]
[SourceTitle "playchess.com"]
[Source "ChessBase"]
[SourceQuality "1"]
[TimeControl "40/5400+30:1800+30"]

1. e4 c6 2. Nf3 d5 3. d3 dxe4 4. dxe4 Qxd1+ 5. Kxd1 Nf6 6. Nbd2 g6 7. h3 Bh6 8. Bd3 Nbd7 9. Nb3 Bxc1 10. Rxc1 a5 11. a4 e5 12. Ke2 Nh5 13. g3 f6 14. Nfd2 Ke7 15. Nc4 b6 16. Ke3 Ng7 17. Rhd1 Ne6 18. Be2 Rb8 19. Bg4 Ndc5 20. Nxc5 Nxc5 21. Bxc8 Rhxc8 22. Ra1 Rd8 23. b3 Ne6 24. Rxd8 Kxd8 25. f4 exf4+ 26. gxf4 g5 27. fxg5 fxg5 28. Rf1 Ke7 29. Ne5 Kd6 30. Rf5 h6 31. Nf7+ Ke7 32. Nxh6 Rh8 33. Rf7+ Ke8 34. Rf6 Ke7 35. Rf7+ Ke8 36. Rf6 Ke7 37. Rg6 Kd7 38. e5 Nf4 39. Rd6+ Kc7 40. Ke4 Nxh3 41. Kf5 Nf4 42. Rf6 c5 43. Kxg5 Nd5 44. Rg6 Rf8 45. Nf5 Re8 46. c4 Nc3 47. e6 Ne4+ 48. Kf4 Nd2 49. Ke5 Nf3+ 50. Kf4 Nd2 51. Rg7+ Kc6 52. Ke5 Nxb3 53. Nd6 Rh8 54. Nb5 Rh5+ 55. Kf6 Rh6+ 56. Kg5 Rxe6 57. Rc7# 1-0

[Event "58th Akiba Rubinstein A 2022"]
[Site "Polanica-Zdroj"]
[Date "2022.08.18"]
[Round "6.8"]
[White "Skurniak, Szymon"]
[Black "Smietanska, Wiktoria"]
[Result "1-0"]
[ECO "E73"]
[WhiteElo "2051"]
[BlackElo "1919"]
[Annotator "NA RC"]
[PlyCount "85"]
[EventDate "2022.08.13"]
[EventCountry "POL"]
[SourceTitle "playchess.com"]
[Source "ChessBase"]
[SourceQuality "1"]
[TimeControl "40/5400+30:1800+30"]

1. c4 {[%emt 0:00:08]} Nf6 {[%emt 0:00:09]} 2. Nc3 {[%emt 0:00:21]} g6 {[%emt 0:00:09]} 3. e4 {[%emt 0:00:04]} d6 {[%emt 0:00:25]} 4. d4 {[%emt 0:00:01]} Bg7 {[%emt 0:00:11]} 5. Be2 {[%emt 0:00:01]} O-O {[%emt 0:00:15]} 6. Be3 {[%emt 0:00:04]} e5 {[%emt 0:01:29]} 7. d5 {[%emt 0:00:03]} a5 {[%emt 0:01:15]} 8. g4 {[%emt 0:00:03]} Na6 {[%emt 0:01:53]} 9. h4 {[%emt 0:01:42]} Nd7 {[%emt 0:08:31]} 10. h5 {[%emt 0:14:13]} Nac5 {[%emt 0:04:00]} 11. Qd2 {[%emt 0:02:28]} a4 {[%emt 0:02:47]} 12. Nh3 {[%emt 0:28:54]} Qe7 {[%emt 0:18:04]} 13. O-O-O {[%emt 0:02:23]} Rd8 {[%emt 0:04:25]} 14. f3 {[%emt 0:06:50]} Nf8 {[%emt 0:04:39]} 15. Rh2 {[%emt 0:07:07]} Bd7 {[%emt 0:03:22]} 16. Rdh1 {[%emt 0:04:35]} c6 {[%emt 0:01:11]} 17. hxg6 {[%emt 0:00:57]} hxg6 {[%emt 0:01:41]} 18. Ng5 {[%emt 0:08:01]} b5 {[%emt 0:01:54]} 19. dxc6 {[%emt 0:00:55]} Bxc6 {[%emt 0:00:07]} 20. cxb5 {[%emt 0:00:11]} Bb7 {[%emt 0:00:44]} 21. Bc4 {[%emt 0:05:57]} Nce6 {[%emt 0:03:26]} 22. Nh7 {[%emt 0:04:01]} Rdc8 {[%emt 0:02:25]} 23. Nxf8 {[%emt 0:02:30]} Rxc4 {[%emt 0:01:06]} 24. Nxe6 {[%emt 0:02:45]} Qxe6 {[%emt 0:01:12]} 25. Kb1 {[%emt 0:00:15]} Rac8 {[%emt 0:02:44]} 26. Rh7 {[%emt 0:01:44]} Qf6 {[%emt 0:02:30]} 27. Qh2 {[%emt 0:01:46]} Kf8 {[%emt 0:05:30]} 28. Rxg7 {[%emt 0:00:08]} Qxf3 {[%emt 0:02:26]} 29. Rg8+ {[%emt 0:02:10]} Ke7 {[%emt 0:00:11]} 30. Rxc8 {[%emt 0:01:26]} Rxc8 {[%emt 0:00:49]} 31. Re1 {[%emt 0:01:26]} Bxe4+ {[%emt 0:00:29]} 32. Ka1 {[%emt 0:00:04]} Bb7 {[%emt 0:02:12]} 33. Qd2 {[%emt 0:00:29]} d5 {[%emt 0:01:19]} 34. Nxa4 {[%emt 0:00:48]} Qxg4 {[%emt 0:01:21]} 35. Nc5 {[%emt 0:00:17]} Ba8 {[%emt 0:01:17]} 36. b6 {[%emt 0:00:19]} Bc6 {[%emt 0:00:46]} 37. b7 {[%emt 0:00:18]} Rb8 {[%emt 0:00:17]} 38. Bg5+ {[%emt 0:01:06]} f6 {[%emt 0:00:36]} 39. Qa5 {[%emt 0:00:52]} Kd6 {[%emt 0:01:43]} 40. Bxf6 {[%emt 0:00:00]} e4 {[%emt 0:00:00]} 41. Nxe4+ {[%emt 0:00:55]} dxe4 {[%emt 0:00:34]} 42. Qe5+ {[%emt 0:00:08]} Kd7 {[%emt 0:00:07]} 43. Qe7# {[%emt 0:00:06]} 1-0

[Event "58th Akiba Rubinstein A 2022"]
[Site "Polanica-Zdroj"]
[Date "2022.08.18"]
[Round "6.9"]
[White "Majocha, Piotr"]
[Black "Nowak, Filip"]
[Result "1/2-1/2"]
[ECO "D45"]
[WhiteElo "2036"]
[BlackElo "1957"]
[Annotator "NA RC"]
[PlyCount "25"]
[EventDate "2022.08.13"]
[EventCountry "POL"]
[SourceTitle "playchess.com"]
[Source "ChessBase"]
[SourceQuality "1"]
[TimeControl "40/5400+30:1800+30"]

1. Nf3 {[%emt 0:00:04]} d5 {[%emt 0:00:15]} 2. c4 {[%emt 0:00:08]} c6 {[%emt 0:00:11]} 3. e3 {[%emt 0:00:09]} Nf6 {[%emt 0:00:07]} 4. Nc3 {[%emt 0:00:04]} e6 {[%emt 0:00:10]} 5. d4 {[%emt 0:00:04]} Nbd7 {[%emt 0:00:26]} 6. Qc2 {[%emt 0:00:11]} Bd6 {[%emt 0:00:19]} 7. b3 {[%emt 0:00:08]} O-O {[%emt 0:00:23]} 8. Be2 {[%emt 0:00:18]} b6 {[%emt 0:00:17]} 9. O-O {[%emt 0:00:15]} Bb7 {[%emt 0:00:10]} 10. Bb2 {[%emt 0:00:07]} Qe7 {[%emt 0:00:23]} 11. Rad1 {[%emt 0:00:19]} Rac8 {[%emt 0:02:01]} 12. Rfe1 {[%emt 0:00:25]} Rfd8 {[%emt 0:00:34]} 13. e4 {[%emt 0:13:14]} 1/2-1/2

[Event "58th Akiba Rubinstein A 2022"]
[Site "Polanica-Zdroj"]
[Date "2022.08.18"]
[Round "6.10"]
[White "Betkowski, Andrzej"]
[Black "Hetzer, Volkhard"]
[Result "1/2-1/2"]
[ECO "A44"]
[WhiteElo "2063"]
[BlackElo "1921"]
[Annotator "NA RC"]
[PlyCount "20"]
[EventDate "2022.08.13"]
[EventCountry "POL"]
[SourceTitle "playchess.com"]
[Source "ChessBase"]
[SourceQuality "1"]
[TimeControl "40/5400+30:1800+30"]

1. d4 {[%emt 0:00:02]} c5 {[%emt 0:06:42]} 2. d5 {[%emt 0:02:01]} e5 {[%emt 0:00:43]} 3. e4 {[%emt 0:01:53]} d6 {[%emt 0:00:04]} 4. Nc3 {[%emt 0:02:08]} Be7 {[%emt 0:00:30]} 5. Nf3 {[%emt 0:07:43]} a6 {[%emt 0:08:24]} 6. a4 {[%emt 0:01:21]} Bg4 {[%emt 0:05:09]} 7. h3 {[%emt 0:05:13]} Bxf3 {[%emt 0:09:50]} 8. Qxf3 {[%emt 0:00:36]} Bg5 {[%emt 0:03:41]} 9. Bxg5 {[%emt 0:04:51]} Qxg5 {[%emt 0:00:05]} 10. Qg4 {[%emt 0:00:30]} Qxg4 {[%emt 0:00:46]} 1/2-1/2

[Event "58th Akiba Rubinstein A 2022"]
[Site "Polanica-Zdroj"]
[Date "2022.08.18"]
[Round "6.11"]
[White "Wolanski, Michal"]
[Black "Motyl, Tomasz"]
[Result "1/2-1/2"]
[ECO "A14"]
[WhiteElo "2005"]
[BlackElo "1936"]
[Annotator "NA RC"]
[PlyCount "127"]
[EventDate "2022.08.13"]
[EventCountry "POL"]
[SourceTitle "playchess.com"]
[Source "ChessBase"]
[SourceQuality "1"]
[TimeControl "40/5400+30:1800+30"]

1. c4 {[%emt 0:00:04]} e6 {[%emt 0:00:55]} 2. g3 {[%emt 0:00:32]} d5 {[%emt 0:00:52]} 3. Bg2 {[%emt 0:00:06]} Nf6 {[%emt 0:04:33]} 4. Nf3 {[%emt 0:00:06]} Be7 {[%emt 0:02:51]} 5. O-O {[%emt 0:00:07]} O-O {[%emt 0:01:14]} 6. b3 {[%emt 0:00:08]} d4 {[%emt 0:02:29]} 7. e3 {[%emt 0:00:21]} c5 {[%emt 0:01:19]} 8. exd4 {[%emt 0:00:08]} cxd4 {[%emt 0:00:13]} 9. d3 {[%emt 0:00:10]} Nc6 {[%emt 0:00:58]} 10. Re1 {[%emt 0:00:30]} a5 {[%emt 0:09:19]} 11. Ne5 {[%emt 0:02:21]} Bd7 {[%emt 0:06:19]} 12. Nxd7 {[%emt 0:00:26]} Qxd7 {[%emt 0:05:31]} 13. Na3 {[%emt 0:08:48]} Rfd8 {[%emt 0:05:18]} 14. Nb5 {[%emt 0:00:44]} a4 {[%emt 0:06:48]} 15. bxa4 {[%emt 0:06:36]} Ra6 {[%emt 0:03:28]} 16. Bf4 {[%emt 0:02:13]} Bb4 {[%emt 0:03:18]} 17. Re2 {[%emt 0:09:15]} Ne8 {[%emt 0:07:16]} 18. Rb1 {[%emt 0:02:27]} Bc5 {[%emt 0:00:49]} 19. Reb2 {[%emt 0:14:33]} Rda8 {[%emt 0:02:46]} 20. Qf3 {[%emt 0:11:38]} e5 {[%emt 0:07:04]} 21. Bg5 {[%emt 0:04:28]} h6 {[%emt 0:03:33]} 22. Bd2 {[%emt 0:00:42]} Rxa4 {[%emt 0:01:46]} 23. a3 {[%emt 0:00:18]} Qe7 {[%emt 0:02:28]} 24. Qf5 {[%emt 0:01:23]} g6 {[%emt 0:01:39]} 25. Qg4 {[%emt 0:03:29]} Kg7 {[%emt 0:00:40]} 26. Qh3 {[%emt 0:02:07]} h5 {[%emt 0:00:27]} 27. Bd5 {[%emt 0:03:24]} R8a6 {[%emt 0:01:22]} 28. f4 {[%emt 0:06:55]} Nf6 {[%emt 0:03:37]} 29. Nc7 {[%emt 0:05:28]} Qxc7 {[%emt 0:01:32]} 30. Rxb7 {[%emt 0:00:15]} Nxd5 {[%emt 0:00:22]} 31. cxd5 {[%emt 0:00:16]} Qd6 {[%emt 0:03:35]} 32. Rd7 {[%emt 0:01:43]} Qf6 {[%emt 0:00:43]} 33. dxc6 {[%emt 0:00:31]} Qxc6 {[%emt 0:02:30]} 34. Rbb7 {[%emt 0:01:31]} Ra7 {[%emt 0:04:30]} 35. Rxf7+ {[%emt 0:00:26]} Kg8 {[%emt 0:00:04]} 36. Rxa7 {[%emt 0:02:48]} Bxa7 {[%emt 0:00:28]} 37. Qd7 {[%emt 0:04:21]} Qxd7 {[%emt 0:00:23]} 38. Rxd7 {[%emt 0:00:03]} exf4 {[%emt 0:01:04]} 39. Bb4 {[%emt 0:00:38]} fxg3 {[%emt 0:00:34]} 40. hxg3 {[%emt 0:00:00]} Ra6 {[%emt 0:00:00]} 41. Kg2 {[%emt 0:01:32]} g5 {[%emt 0:03:05]} 42. Rd5 {[%emt 0:06:30]} Rg6 {[%emt 0:03:25]} 43. Be7 {[%emt 0:03:34]} g4 {[%emt 0:10:41]} 44. Rxh5 {[%emt 0:08:51]} Re6 {[%emt 0:00:16]} 45. Bb4 {[%emt 0:00:24]} Re2+ {[%emt 0:00:31]} 46. Kf1 {[%emt 0:00:31]} Re3 {[%emt 0:00:20]} 47. Rg5+ {[%emt 0:00:20]} Kf7 {[%emt 0:00:10]} 48. Rxg4 {[%emt 0:00:18]} Rxd3 {[%emt 0:00:25]} 49. Re4 {[%emt 0:01:30]} Kf6 {[%emt 0:02:03]} 50. g4 {[%emt 0:00:22]} Kg5 {[%emt 0:01:30]} 51. Be7+ {[%emt 0:01:38]} Kg6 {[%emt 0:00:06]} 52. Ke2 {[%emt 0:00:43]} Rb3 {[%emt 0:04:36]} 53. Bb4 {[%emt 0:04:34]} Kg5 {[%emt 0:02:17]} 54. Bd2+ {[%emt 0:02:54]} Kf6 {[%emt 0:01:19]} 55. g5+ {[%emt 0:01:31]} Kf5 {[%emt 0:01:39]} 56. Rf4+ {[%emt 0:00:39]} Ke5 {[%emt 0:00:53]} 57. g6 {[%emt 0:01:34]} Rg3 {[%emt 0:00:53]} 58. Rf7 {[%emt 0:02:55]} d3+ {[%emt 0:00:58]} 59. Kd1 {[%emt 0:00:08]} Rg1+ {[%emt 0:00:32]} 60. Be1 {[%emt 0:00:06]} Bc5 {[%emt 0:02:42]} 61. g7 {[%emt 0:02:44]} Bxa3 {[%emt 0:02:47]} 62. Rf8 {[%emt 0:03:40]} Rxg7 {[%emt 0:00:19]} 63. Bc3+ {[%emt 0:00:08]} Ke4 {[%emt 0:01:07]} 64. Bxg7 {[%emt 0:00:24]} 1/2-1/2

[Event "58th Akiba Rubinstein A 2022"]
[Site "Polanica-Zdroj"]
[Date "2022.08.18"]
[Round "6.12"]
[White "Sliwerski, Radoslaw"]
[Black "Skrzyczek, Tomasz"]
[Result "1-0"]
[ECO "A57"]
[WhiteElo "1951"]
[BlackElo "1909"]
[Annotator "NA RC"]
[PlyCount "89"]
[EventDate "2022.08.13"]
[EventCountry "POL"]
[SourceTitle "playchess.com"]
[Source "ChessBase"]
[SourceQuality "1"]
[TimeControl "40/5400+30:1800+30"]

1. d4 {[%emt 0:00:04]} Nf6 {[%emt 0:00:06]} 2. c4 {[%emt 0:00:06]} c5 {[%emt 0:00:03]} 3. d5 {[%emt 0:00:43]} b5 {[%emt 0:00:03]} 4. Qc2 {[%emt 0:00:07]} b4 {[%emt 0:00:38]} 5. e4 {[%emt 0:00:32]} d6 {[%emt 0:00:13]} 6. h3 {[%emt 0:01:17]} g6 {[%emt 0:01:06]} 7. Bg5 {[%emt 0:01:00]} Bg7 {[%emt 0:00:51]} 8. Nd2 {[%emt 0:00:32]} O-O {[%emt 0:02:01]} 9. Ngf3 {[%emt 0:03:44]} h6 {[%emt 0:03:29]} 10. Be3 {[%emt 0:00:12]} a5 {[%emt 0:03:55]} 11. Bd3 {[%emt 0:02:39]} Qc7 {[%emt 0:04:56]} 12. O-O {[%emt 0:03:24]} e5 {[%emt 0:00:48]} 13. dxe6 {[%emt 0:07:19]} Bxe6 {[%emt 0:01:29]} 14. Rfe1 {[%emt 0:05:21]} Nc6 {[%emt 0:01:00]} 15. Bf4 {[%emt 0:02:44]} Nh5 {[%emt 0:04:37]} 16. Bh2 {[%emt 0:01:37]} Be5 {[%emt 0:00:52]} 17. Nf1 {[%emt 0:12:33]} a4 {[%emt 0:06:21]} 18. Bxe5 {[%emt 0:02:05]} dxe5 {[%emt 0:00:13]} 19. Ne3 {[%emt 0:01:40]} Nf4 {[%emt 0:08:13]} 20. Qd2 {[%emt 0:01:59]} Rad8 {[%emt 0:12:34]} 21. Nd5 {[%emt 0:01:06]} Qd6 {[%emt 0:00:16]} 22. Bf1 {[%emt 0:02:13]} Kg7 {[%emt 0:03:10]} 23. Rad1 {[%emt 0:04:02]} Qb8 {[%emt 0:05:15]} 24. Qe3 {[%emt 0:09:04]} Nd4 {[%emt 0:04:39]} 25. Nxd4 {[%emt 0:01:43]} cxd4 {[%emt 0:00:12]} 26. Qd2 {[%emt 0:01:38]} Bxd5 {[%emt 0:05:40]} 27. exd5 {[%emt 0:01:46]} Rfe8 {[%emt 0:05:33]} 28. g3 {[%emt 0:00:53]} Nh5 {[%emt 0:00:19]} 29. Bg2 {[%emt 0:01:46]} Qd6 {[%emt 0:02:01]} 30. Qc2 {[%emt 0:01:12]} Qc5 {[%emt 0:04:05]} 31. Rc1 {[%emt 0:05:41]} Ra8 {[%emt 0:06:17]} 32. Qd3 {[%emt 0:01:31]} a3 {[%emt 0:00:58]} 33. b3 {[%emt 0:00:22]} f5 {[%emt 0:02:07]} 34. Rcd1 {[%emt 0:01:08]} Kh7 {[%emt 0:08:01]} 35. Kh2 {[%emt 0:04:42]} f4 {[%emt 0:00:28]} 36. Be4 {[%emt 0:01:29]} Ra6 {[%emt 0:00:45]} 37. g4 {[%emt 0:03:44]} Ng7 {[%emt 0:00:11]} 38. h4 {[%emt 0:00:15]} Qe7 {[%emt 0:03:27]} 39. Kh3 {[%emt 0:03:27]} h5 {[%emt 0:01:40]} 40. gxh5 {[%emt 0:00:00]} Nxh5 {[%emt 0:00:00]} 41. Rg1 {[%emt 0:01:33]} f3 {[%emt 0:13:08]} 42. Bxg6+ {[%emt 0:00:36]} Kh6 {[%emt 0:00:14]} 43. Bxh5 {[%emt 0:00:39]} Kxh5 {[%emt 0:00:14]} 44. Qxf3+ {[%emt 0:00:54]} Kh6 {[%emt 0:00:03]} 45. Rg5 {[%emt 0:01:09]} 1-0

[Event "58th Akiba Rubinstein A 2022"]
[Site "Polanica-Zdroj"]
[Date "2022.08.18"]
[Round "6.13"]
[White "Kasprzak, Lukasz"]
[Black "Czechowski, Jakub"]
[Result "1/2-1/2"]
[ECO "E81"]
[WhiteElo "1938"]
[BlackElo "2003"]
[Annotator "NA RC"]
[PlyCount "115"]
[EventDate "2022.08.13"]
[EventCountry "POL"]
[SourceTitle "playchess.com"]
[Source "ChessBase"]
[SourceQuality "1"]
[TimeControl "40/5400+30:1800+30"]

1. d4 {[%emt 0:00:18]} Nf6 {[%emt 0:00:05]} 2. c4 {[%emt 0:00:06]} g6 {[%emt 0:00:02]} 3. Nc3 {[%emt 0:00:06]} Bg7 {[%emt 0:00:05]} 4. e4 {[%emt 0:00:07]} d6 {[%emt 0:00:03]} 5. f3 {[%emt 0:00:21]} O-O {[%emt 0:00:05]} 6. Nge2 {[%emt 0:02:06]} c5 {[%emt 0:00:04]} 7. Be3 {[%emt 0:00:23]} Nc6 {[%emt 0:00:04]} 8. d5 {[%emt 0:02:02]} Na5 {[%emt 0:00:06]} 9. Ng3 {[%emt 0:15:37]} a6 {[%emt 0:00:07]} 10. Qc2 {[%emt 0:07:59]} Bd7 {[%emt 0:00:25]} 11. Rb1 {[%emt 0:05:46]} e6 {[%emt 0:06:19]} 12. b4 {[%emt 0:10:35]} exd5 {[%emt 0:00:29]} 13. cxd5 {[%emt 0:01:39]} cxb4 {[%emt 0:00:06]} 14. Rxb4 {[%emt 0:00:04]} b5 {[%emt 0:00:08]} 15. Bd3 {[%emt 0:03:40]} Rc8 {[%emt 0:01:04]} 16. Nge2 {[%emt 0:02:54]} Nb7 {[%emt 0:08:54]} 17. Rb1 {[%emt 0:04:40]} Re8 {[%emt 0:13:23]} 18. Qd2 {[%emt 0:02:39]} Nc5 {[%emt 0:00:44]} 19. O-O {[%emt 0:01:04]} Qa5 {[%emt 0:01:59]} 20. Rfc1 {[%emt 0:07:25]} Rc7 {[%emt 0:09:26]} 21. Bf4 {[%emt 0:11:15]} Qb6 {[%emt 0:00:09]} 22. Be3 {[%emt 0:00:17]} Rec8 {[%emt 0:00:05]} 23. e5 {[%emt 0:10:42]} dxe5 {[%emt 0:02:28]} 24. Na4 {[%emt 0:00:11]} Qd6 {[%emt 0:00:03]} 25. Nxc5 {[%emt 0:00:18]} Rxc5 {[%emt 0:00:04]} 26. Rxc5 {[%emt 0:02:05]} Rxc5 {[%emt 0:00:05]} 27. Qb4 {[%emt 0:01:01]} Rxd5 {[%emt 0:00:14]} 28. Qxd6 {[%emt 0:00:57]} Rxd6 {[%emt 0:00:05]} 29. Bc2 {[%emt 0:01:12]} Be6 {[%emt 0:07:02]} 30. a4 {[%emt 0:00:45]} Bc4 {[%emt 0:01:35]} 31. axb5 {[%emt 0:00:24]} axb5 {[%emt 0:01:46]} 32. Nc3 {[%emt 0:01:41]} Nd5 {[%emt 0:00:30]} 33. Nxb5 {[%emt 0:03:02]} Bxb5 {[%emt 0:00:48]} 34. Bc5 {[%emt 0:00:11]} Nc3 {[%emt 0:00:57]} 35. Bxd6 {[%emt 0:00:10]} Nxb1 {[%emt 0:00:07]} 36. Bxb1 {[%emt 0:00:04]} Bc4 {[%emt 0:06:52]} 37. g4 {[%emt 0:01:56]} f6 {[%emt 0:02:27]} 38. f4 {[%emt 0:01:13]} Kf7 {[%emt 0:00:35]} 39. Kf2 {[%emt 0:00:59]} Ke6 {[%emt 0:00:38]} 40. fxe5 {[%emt 0:00:00]} fxe5 {[%emt 0:00:00]} 41. Ba3 {[%emt 0:12:16]} Bd5 {[%emt 0:03:31]} 42. h4 {[%emt 0:05:19]} Bf6 {[%emt 0:02:26]} 43. h5 {[%emt 0:04:15]} Bh4+ {[%emt 0:02:30]} 44. Ke3 {[%emt 0:02:51]} Bg5+ {[%emt 0:00:37]} 45. Ke2 {[%emt 0:00:28]} e4 {[%emt 0:00:20]} 46. Bb2 {[%emt 0:01:55]} Bc4+ {[%emt 0:04:30]} 47. Kd1 {[%emt 0:00:24]} e3 {[%emt 0:02:24]} 48. Bd4 {[%emt 0:04:06]} e2+ {[%emt 0:04:12]} 49. Ke1 {[%emt 0:00:02]} Be7 {[%emt 0:00:16]} 50. Be3 {[%emt 0:00:28]} Kf7 {[%emt 0:00:19]} 51. Be4 {[%emt 0:01:04]} Kg7 {[%emt 0:03:14]} 52. Bf3 {[%emt 0:03:04]} Bb4+ {[%emt 0:01:11]} 53. Bd2 {[%emt 0:00:01]} Bxd2+ {[%emt 0:00:06]} 54. Kxd2 {[%emt 0:00:02]} Kf6 {[%emt 0:00:29]} 55. hxg6 {[%emt 0:01:56]} hxg6 {[%emt 0:00:39]} 56. Bxe2 {[%emt 0:00:05]} Be6 {[%emt 0:00:08]} 57. Ke3 {[%emt 0:00:46]} Ke5 {[%emt 0:00:12]} 58. Bf3 {[%emt 0:00:38]} 1/2-1/2

[Event "58th Akiba Rubinstein A 2022"]
[Site "Polanica-Zdroj"]
[Date "2022.08.18"]
[Round "6.14"]
[White "Iwanczuk, Krzysztof"]
[Black "Rog, Bartlomiej"]
[Result "0-1"]
[ECO "B06"]
[WhiteElo "1947"]
[BlackElo "2091"]
[Annotator "NA RC"]
[PlyCount "64"]
[EventDate "2022.08.13"]
[EventCountry "POL"]
[SourceTitle "playchess.com"]
[Source "ChessBase"]
[SourceQuality "1"]
[TimeControl "40/5400+30:1800+30"]

1. e4 {[%emt 0:00:03]} d6 {[%emt 0:00:08]} 2. d4 {[%emt 0:00:05]} g6 {[%emt 0:00:08]} 3. Nc3 {[%emt 0:00:22]} Bg7 {[%emt 0:00:09]} 4. Be3 {[%emt 0:00:39]} Nf6 {[%emt 0:00:09]} 5. Qd2 {[%emt 0:00:22]} a6 {[%emt 0:00:10]} 6. O-O-O {[%emt 0:01:47]} b5 {[%emt 0:00:09]} 7. f3 {[%emt 0:00:08]} Nbd7 {[%emt 0:00:13]} 8. Bh6 {[%emt 0:04:02]} Bxh6 {[%emt 0:01:01]} 9. Qxh6 {[%emt 0:00:04]} Bb7 {[%emt 0:09:12]} 10. e5 {[%emt 0:08:40]} b4 {[%emt 0:01:27]} 11. Nb1 {[%emt 0:02:23]} Nd5 {[%emt 0:00:36]} 12. e6 {[%emt 0:01:18]} fxe6 {[%emt 0:00:10]} 13. Qg7 {[%emt 0:02:55]} Rf8 {[%emt 0:00:38]} 14. Qxh7 {[%emt 0:00:55]} Rf6 {[%emt 0:04:02]} 15. Re1 {[%emt 0:10:12]} c5 {[%emt 0:05:26]} 16. Nd2 {[%emt 0:04:28]} Qa5 {[%emt 0:01:45]} 17. Bc4 {[%emt 0:09:24]} cxd4 {[%emt 0:26:42]} 18. Ne4 {[%emt 0:10:16]} b3 {[%emt 0:00:59]} 19. Nxf6+ {[%emt 0:00:23]} N7xf6 {[%emt 0:00:02]} 20. Qxg6+ {[%emt 0:00:17]} Kd7 {[%emt 0:00:07]} 21. Ne2 {[%emt 0:01:12]} bxa2 {[%emt 0:00:13]} 22. Bxa2 {[%emt 0:00:11]} Qxa2 {[%emt 0:00:07]} 23. Nxd4 {[%emt 0:13:26]} Rg8 {[%emt 0:04:34]} 24. Qd3 {[%emt 0:00:20]} Qa1+ {[%emt 0:03:25]} 25. Kd2 {[%emt 0:01:08]} Rxg2+ {[%emt 0:00:06]} 26. Ne2 {[%emt 0:00:23]} Qa5+ {[%emt 0:00:06]} 27. c3 {[%emt 0:06:40]} Nf4 {[%emt 0:08:45]} 28. Qe3 {[%emt 0:03:21]} N6d5 {[%emt 0:03:42]} 29. Qd4 {[%emt 0:00:23]} Qb5 {[%emt 0:00:01]} 30. c4 {[%emt 0:00:30]} Qb4+ {[%emt 0:00:18]} 31. Kd1 {[%emt 0:00:46]} Qb3+ {[%emt 0:00:28]} 32. Kd2 {[%emt 0:00:31]} e5 {[%emt 0:00:07]} 0-1